bitfinex/quotes_BTCUSD_20251231
["timestamp","ask_amount","ask_price","bid_price","bid_amount"]
[1767193050965,0.0104172,88492.0,88480.0,0.26601]
[1767193051171,0.0116,88493.0,88480.0,0.26601]
[1767193051374,0.0116,88493.0,88480.0,0.28871198]
[1767193051573,0.0116,88493.0,88482.0,0.26601]
[1767193052363,0.0116,88493.0,88479.0,0.03361798]
[1767193052364,0.0003445,88496.0,88483.0,0.0114]
[1767193052568,0.4582245,88496.0,88484.0,0.02779636]
[1767193054882,0.4582245,88496.0,88484.0,0.02724736]
[1767193055101,0.45788,88494.0,88483.0,0.0002]
[1767193055298,0.45788,88494.0,88477.0,0.0114]
[1767193056379,0.45788,88494.0,88470.0,0.26581]
[1767193056499,0.0114,88495.0,88471.0,0.0114]
[1767193056500,0.45788,88492.0,88471.0,0.0114]
[1767193056700,0.45788,88490.0,88471.0,0.0114]
[1767193056924,0.45788,88488.0,88471.0,0.0114]
[1767193057132,0.45788,88486.0,88471.0,0.0114]
[1767193058115,0.0114,88487.0,88486.0,0.000199]
[1767193058342,0.0114,88487.0,88477.0,0.26581]
[1767193058523,0.0114,88487.0,88471.0,0.0114]
[1767193058720,0.0114,88487.0,88472.0,0.26581]
[1767193058990,0.0114,88487.0,88473.0,0.027721]
[1767193059463,0.48186359,88491.0,88473.0,0.027721]
[1767193059668,0.02398359,88490.0,88473.0,0.293531]
[1767193060208,0.45788,88491.0,88473.0,0.293531]
[1767193060408,0.0117445,88496.0,88473.0,0.293531]
[1767193060409,0.4696245,88496.0,88474.0,0.26581]
[1767193060637,0.45788,88495.0,88476.0,0.26581]
[1767193061662,0.0117445,88496.0,88477.0,0.26581]
[1767193061836,0.0117445,88496.0,88479.0,0.26581]
[1767193062252,0.4696245,88496.0,88479.0,0.26581]
[1767193062455,0.46958264,88496.0,88479.0,0.26581]
[1767193062637,0.46958264,88496.0,88479.0,0.293531]
[1767193063567,0.01170264,88496.0,88479.0,0.293531]
[1767193063789,0.00030264,88496.0,88480.0,0.26581]
[1767193063961,0.45788,88495.0,88481.0,0.0114]
[1767193064334,0.45788,88495.0,88482.0,0.03162336]
[1767193065462,0.00030264,88496.0,88482.0,0.29743336]
[1767193065622,0.0114,88502.0,88496.0,0.00029936]
[1767193065834,0.0114,88502.0,88490.0,0.26551]
[1767193066672,0.0002,88503.0,88490.0,0.26551]
[1767193066881,0.45788,88513.0,88496.0,0.26551]
[1767193067109,0.45788,88513.0,88490.0,0.62130962]
[1767193067110,0.0003445,88516.0,88507.0,4.8e-05]
[1767193067281,0.0003445,88516.0,88500.0,0.26551]
[1767193067662,0.0114,88517.0,88500.0,0.26551]
[1767193067861,8.13e-05,88516.0,88500.0,0.26551]
[1767193069450,0.4579613,88516.0,88500.0,0.26551]
[1767193070610,0.000301,88500.0,88499.0,0.26551]
[1767193070809,8.13e-05,88500.0,88499.0,0.26551]
[1767193071564,8.13e-05,88500.0,88498.0,0.27691]
[1767193072188,3e-07,88500.0,88498.0,0.27691]
[1767193073716,3e-07,88500.0,88498.0,0.0114]
[1767193073907,3e-07,88500.0,88498.0,0.027691]
[1767193074109,3e-07,88500.0,88490.0,0.00030606]
[1767193074110,0.47395,88497.0,88490.0,0.00030606]
[1767193074353,0.47395,88497.0,88475.0,0.26551]
[1767193074553,3e-07,88500.0,88475.0,0.26551]
[1767193074554,0.47395,88490.0,88476.0,0.0116]
[1767193074734,0.47405623,88490.0,88476.0,0.0116]
[1767193074932,0.47405623,88490.0,88477.0,0.04127479]
[1767193075341,0.47405623,88490.0,88478.0,0.0114]
[1767193076361,0.47405623,88490.0,88479.0,0.0114]
[1767193076559,0.47405623,88490.0,88476.0,0.0002]
[1767193076560,0.47405623,88490.0,88477.0,0.0114]
[1767193077536,0.47405623,88490.0,88476.0,0.0002]
[1767193080751,0.0002,88496.0,88483.0,0.2771216]
[1767193080957,0.0002,88496.0,88476.0,0.0002]
[1767193080958,0.48535,88509.0,88490.0,0.3234224]
[1767193081181,0.47395,88509.0,88495.0,0.27712007]
[1767193081400,0.0003557,88519.0,88503.0,0.26734]
[1767193081617,0.0003557,88519.0,88490.0,0.00010623]
[1767193081618,0.02400246,88531.0,88514.0,0.26678]
[1767193081824,0.47395,88532.0,88516.0,0.26678]
[1767193082036,0.0114,88536.0,88518.0,0.26678]
[1767193082454,0.47395,88535.0,88515.0,0.03232688]
[1767193082683,0.47395,88535.0,88514.0,0.0114]
[1767193083334,0.47405629,88535.0,88514.0,0.0114]
[1767193083975,0.47405629,88535.0,88517.0,0.06778331]
[1767193084164,0.47405629,88535.0,88518.0,0.26678]
[1767193084364,0.47405629,88535.0,88518.0,0.27807713]
[1767193084582,0.47405629,88535.0,88519.0,0.26678]
[1767193084999,0.00010629,88535.0,88519.0,0.26678]
[1767193085206,0.00010629,88535.0,88522.0,0.26678]
[1767193085360,0.00010629,88535.0,88524.0,0.26678]
[1767193085728,0.00010629,88535.0,88523.0,0.0114]
[1767193086060,0.47395,88534.0,88523.0,0.039218]
[1767193086315,0.47395,88534.0,88523.0,0.0114]
[1767193087183,0.0003554,88540.0,88523.0,0.0114]
[1767193087184,0.0003554,88540.0,88524.0,0.26678]
[1767193087378,0.47395,88539.0,88524.0,0.00010629]
[1767193088188,0.47395,88539.0,88520.0,0.0114]
[1767193088189,0.47395,88539.0,88520.0,0.00975232]
[1767193088385,0.47405621,88539.0,88508.0,0.0677904]
[1767193088587,0.47405621,88539.0,88509.0,0.04609689]
[1767193088839,0.47405621,88539.0,88509.0,0.05739517]
[1767193089421,0.47405621,88539.0,88510.0,0.01129815]
[1767193090010,0.47405621,88539.0,88511.0,0.0114]
[1767193090210,0.47405621,88539.0,88512.0,0.0114]
[1767193090560,0.47405621,88539.0,88513.0,0.02616845]
[1767193090923,0.00010621,88539.0,88524.0,0.26788]
[1767193091129,0.00010621,88539.0,88525.0,0.27928]
[1767193091625,0.00010621,88539.0,88525.0,0.29057624]
[1767193091958,0.00010621,88539.0,88526.0,0.03469689]
[1767193092162,0.00010621,88539.0,88526.0,0.30257689]
[1767193093169,2.1e-07,88539.0,88528.0,0.26788]
[1767193093572,2.1e-07,88539.0,88528.0,0.27917586]
[1767193093748,2.1e-07,88539.0,88532.0,0.01129535]
[1767193093966,2.1e-07,88539.0,88533.0,0.02616845]
[1767193096367,2.1e-07,88539.0,88533.0,0.02606245]
[1767193096551,2.1e-07,88539.0,88515.0,0.0677845]
[1767193096552,0.47395021,88539.0,88515.0,0.0677845]
[1767193096801,0.47395021,88539.0,88511.0,0.26788]
[1767193096939,0.47395021,88539.0,88516.0,0.0114]
[1767193097141,0.47395021,88539.0,88517.0,0.05176064]
[1767193099913,0.47395021,88539.0,88517.0,0.04036064]
[1767193100134,0.47395021,88539.0,88518.0,0.0114]
[1767193100552,0.48325,88537.0,88518.0,0.0114]
[1767193101089,0.48325,88537.0,88519.0,0.0114]
[1767193102997,0.48325,88537.0,88518.0,0.0114]
[1767193103604,0.48325,88537.0,88511.0,0.26788]
[1767193103800,0.48325,88537.0,88512.0,0.038188]
[1767193105903,0.48325,88537.0,88514.0,0.26788]
[1767193106742,0.48325,88537.0,88512.0,0.038188]
[1767193106964,0.48325,88537.0,88503.0,0.26788]
[1767193107287,0.48325,88537.0,88507.0,0.26788]
[1767193108582,0.48325,88537.0,88507.0,0.27917854]
[1767193108788,0.48325,88537.0,88507.0,0.26788]
[1767193110243,0.48325,88537.0,88501.0,0.05649537]
[1767193110244,0.0114,88538.0,88508.0,0.0114]
[1767193110245,0.48325,88535.0,88508.0,0.0114]
[1767193110396,0.48325,88533.0,88509.0,0.0114]
[1767193110728,0.48325,88533.0,88501.0,0.26788]
[1767193110729,0.48325,88531.0,88501.0,0.26788]
[1767193111019,0.48325,88529.0,88507.0,0.0114]
[1767193111219,0.48325,88527.0,88507.0,0.0114]
[1767193111417,0.48325,88525.0,88507.0,0.0114]
[1767193111619,0.48325,88523.0,88507.0,0.0114]
[1767193111824,0.48325,88521.0,88507.0,0.0114]
[1767193112057,0.48325,88519.0,88500.0,0.0002]
[1767193112334,0.48325,88519.0,88500.0,0.032672]
[1767193112539,0.48325,88517.0,88500.0,0.0002]
[1767193112693,0.48325,88515.0,88500.0,0.0002]
[1767193112899,0.03989078,88526.0,88500.0,0.0002]
[1767193112900,0.48325,88513.0,88500.0,0.0002]
[1767193113103,0.48325,88511.0,88500.0,0.0002]
[1767193113624,0.48325,88511.0,88479.0,0.2260413]
[1767193113625,0.48325,88509.0,88477.0,0.26808]
[1767193113791,0.02402097,88510.0,88472.0,0.26808]
[1767193113792,0.48325,88507.0,88472.0,0.26808]
[1767193113990,0.48325,88505.0,88472.0,0.26808]
[1767193114232,0.0002,88510.0,88477.0,0.027968]
[1767193114233,0.48325,88503.0,88477.0,0.027968]
[1767193114435,0.48325,88501.0,88477.0,0.027968]
[1767193114747,0.48325,88499.0,88477.0,0.027968]
[1767193114952,0.04131333,88504.0,88476.0,0.000306]
[1767193114953,0.48325,88497.0,88476.0,0.000306]
[1767193115096,0.48325,88495.0,88476.0,0.000306]
[1767193115289,0.48325,88493.0,88476.0,0.000306]
[1767193118238,0.049465,88492.0,88476.0,0.000306]
[1767193118489,0.0114,88494.0,88476.0,0.000306]
[1767193118490,0.51753687,88491.0,88476.0,0.000306]
[1767193118638,0.48325,88489.0,88476.0,0.000306]
[1767193118863,0.48325,88487.0,88476.0,0.000306]
[1767193119046,0.48325,88485.0,88476.0,0.000306]
[1767193120650,0.0114,88486.0,88466.0,1.4e-06]
[1767193120651,0.48325,88483.0,88466.0,1.4e-06]
[1767193120850,0.48325,88483.0,88462.0,0.00015877]
[1767193121047,0.48325,88483.0,88462.0,0.00051241]
[1767193121320,0.48325,88483.0,88476.0,1e-08]
[1767193123463,0.48325,88483.0,88462.0,0.00051241]
[1767193123464,0.48325,88483.0,88464.0,0.15678607]
[1767193123668,0.48325,88483.0,88466.0,0.10016]
[1767193124360,0.48325,88483.0,88466.0,0.09951558]
[1767193124480,0.49465,88486.0,88465.0,0.01572985]
[1767193124689,0.49465,88486.0,88473.0,0.0002]
[1767193125026,0.49465,88486.0,88466.0,0.01]
[1767193125204,0.49465,88486.0,88467.0,0.09712]
[1767193126004,0.4941,88486.0,88467.0,0.09712]
[1767193126343,0.4941,88486.0,88467.0,0.10842364]
[1767193126546,0.4941,88486.0,88468.0,0.04920702]
[1767193126745,0.4941,88486.0,88468.0,0.14632702]
[1767193126970,0.4941,88486.0,88469.0,0.09712]
[1767193127336,0.01085,88486.0,88473.0,0.09712]
[1767193128122,0.48325,88492.0,88471.0,0.09712]
[1767193128324,0.48325,88492.0,88461.0,0.226087]
[1767193128325,0.0114,88491.0,88473.0,0.09712]
[1767193128522,0.49465,88491.0,88472.0,0.01862455]
[1767193129306,0.49465,88491.0,88472.0,0.11574455]
[1767193129430,0.49465,88491.0,88473.0,0.01130288]
[1767193129627,0.49465,88491.0,88475.0,0.10842262]
[1767193129828,0.0114,88491.0,88477.0,0.09712]
[1767193130267,0.0002,88493.0,88477.0,0.09712]
[1767193130763,0.0002,88493.0,88480.0,0.01130198]
[1767193130966,0.0002,88493.0,88482.0,0.09712]
[1767193131166,0.0002,88493.0,88484.0,0.09712]
[1767193131364,0.0002,88493.0,88484.0,0.10842147]
[1767193131574,0.0002,88493.0,88486.0,0.09712]
[1767193131977,0.45803203,88504.0,88489.0,0.01130083]
[1767193132231,0.45803203,88504.0,88483.0,0.0131026]
[1767193132232,0.45968,88504.0,88483.0,0.0131026]
[1767193132352,0.45968,88488.0,88482.0,0.01]
[1767193133474,0.45968,88497.0,88482.0,0.01]
[1767193134888,0.45968,88497.0,88482.0,0.009451]
[1767193135019,0.45968,88497.0,88482.0,1e-06]
[1767193135448,0.45968,88495.0,88482.0,1e-06]
[1767193135662,0.45968,88493.0,88482.0,1e-06]
[1767193138227,0.02394493,88492.0,88482.0,1e-06]
[1767193138425,0.47108,88491.0,88482.0,1e-06]
[1767193138716,0.47118615,88491.0,88482.0,1e-06]
[1767193139095,0.01150615,88491.0,88482.0,1e-06]
[1767193140534,0.03545238,88491.0,88482.0,1e-06]
[1767193140741,0.02394623,88490.0,88482.0,1e-06]
[1767193140940,0.02394623,88489.0,88482.0,1e-06]
[1767193141139,0.02394623,88488.0,88482.0,1e-06]
[1767193141315,0.02394623,88487.0,88482.0,1e-06]
[1767193141516,0.02394623,88486.0,88482.0,1e-06]
[1767193141726,0.01150615,88491.0,88482.0,1e-06]
[1767193141930,0.01041139,88490.0,88482.0,1e-06]
[1767193142108,0.01150615,88491.0,88482.0,1e-06]
[1767193142314,0.01041192,88490.0,88482.0,1e-06]
[1767193142575,0.01041192,88489.0,88482.0,1e-06]
[1767193144150,0.03439909,88489.0,88482.0,1e-06]
[1767193144345,0.03439909,88488.0,88482.0,1e-06]
[1767193144486,0.03439909,88487.0,88482.0,1e-06]
[1767193144692,0.03439909,88486.0,88482.0,1e-06]
[1767193144906,0.02981979,88490.0,88482.0,1e-06]
[1767193144907,0.03439909,88485.0,88482.0,1e-06]
[1767193145103,0.02981979,88490.0,88482.0,1e-06]
[1767193145104,0.03483817,88484.0,88482.0,1e-06]
[1767193145307,0.02398717,88483.0,88482.0,1e-06]
[1767193145767,0.010851,88484.0,88482.0,1e-06]
[1767193146480,0.0114,88487.0,88482.0,1e-06]
[1767193148866,0.00010615,88491.0,88483.0,0.01017179]
[1767193150899,0.00010615,88491.0,88483.0,0.02147339]
[1767193151134,0.0002,88494.0,88486.0,0.05650581]
[1767193151282,0.0002,88494.0,88487.0,0.06780593]
[1767193151490,0.0002,88494.0,88486.0,0.06780729]
[1767193151690,0.0002,88494.0,88487.0,0.05074392]
[1767193152001,0.0002,88494.0,88490.0,0.01130071]
[1767193152339,0.0002,88494.0,88489.0,0.01130083]
[1767193152720,0.0002,88494.0,88491.0,0.05650281]
[1767193152921,0.0002,88494.0,88493.0,0.05650164]
[1767193153152,0.0002,88494.0,88493.0,0.02000115]
[1767193153339,0.0002,88494.0,88492.0,0.05650165]
[1767193153492,0.0002,88494.0,88493.0,0.05650164]
[1767193154371,1e-08,88494.0,88493.0,0.05650164]
[1767193154707,1e-08,88494.0,88493.0,0.06650164]
[1767193155314,0.00054059,88505.0,88496.0,0.01129994]
[1767193155522,0.00054059,88505.0,88497.0,0.04959157]
[1767193155729,0.00054059,88505.0,88498.0,0.0114]
[1767193155902,0.00054059,88505.0,88498.0,0.02269969]
[1767193156105,0.00054059,88505.0,88499.0,0.01129956]
[1767193156307,0.00054059,88505.0,88500.0,0.0677966]
[1767193156502,0.00054059,88505.0,88501.0,0.0112993]
[1767193156782,0.00054059,88505.0,88502.0,0.01129917]
[1767193156974,0.00054059,88505.0,88500.0,0.03132363]
[1767193157130,0.00054059,88505.0,88503.0,0.0564952]
[1767193157592,0.0002,88510.0,88502.0,0.01129917]
[1767193157778,0.0002,88510.0,88503.0,0.03591134]
[1767193158140,0.0002,88510.0,88501.0,0.0112993]
[1767193158365,0.0002,88510.0,88502.0,0.01129917]
[1767193158566,0.0002,88510.0,88500.0,0.07652132]
[1767193158767,0.0002,88510.0,88500.0,0.08782075]
[1767193158947,0.0002,88510.0,88501.0,0.05649649]
[1767193159145,0.0002,88510.0,88504.0,0.01129892]
[1767193159544,0.0002,88510.0,88504.0,0.06779353]
[1767193160248,0.0002,88510.0,88505.0,0.01129879]
[1767193161108,0.0002,88510.0,88504.0,0.0677935]
[1767193161309,0.0002,88510.0,88505.0,0.01129879]
[1767193161530,0.0002,88510.0,88499.0,0.23728926]
[1767193161531,0.0002,88510.0,88488.0,0.01130096]
[1767193161722,0.0002,88510.0,88471.0,0.45212287]
[1767193161723,0.001099,88505.0,88494.0,0.0114]
[1767193162008,0.001099,88505.0,88502.0,0.01129917]
[1767193162211,0.0002,88510.0,88503.0,0.0114]
[1767193167771,0.0002,88510.0,88497.0,0.0677984]
[1767193167972,0.0002,88510.0,88498.0,0.01129969]
[1767193168204,0.0002,88510.0,88499.0,0.02269956]
[1767193168428,0.0002407,88516.0,88501.0,0.056496]
[1767193168644,0.0002407,88516.0,88503.0,0.01129905]
[1767193168880,7e-07,88516.0,88509.0,0.01129828]
[1767193169086,7e-07,88516.0,88510.0,0.0114]
[1767193169838,7e-07,88516.0,88510.0,0.0114]
[1767193170668,7e-07,88516.0,88511.0,0.0114]
[1767193171686,7e-07,88516.0,88512.0,0.01004909]
[1767193174917,7e-07,88516.0,88510.0,0.01]
[1767193175122,7e-07,88516.0,88510.0,0.00956]
[1767193175302,7e-07,88516.0,88500.0,0.0002]
[1767193175648,7e-07,88516.0,88501.0,0.0114]
[1767193178763,7e-07,88516.0,88501.0,0.0214]
[1767193179027,7e-07,88516.0,88501.0,0.01]
[1767193182279,0.02396088,88516.0,88501.0,0.01]
[1767193182465,0.02396018,88515.0,88501.0,0.01]
[1767193182668,7e-07,88516.0,88501.0,0.01]
[1767193184978,0.02403596,88516.0,88501.0,0.01]
[1767193185179,0.02403526,88515.0,88501.0,0.01]
[1767193185317,0.02403526,88514.0,88501.0,0.01]
[1767193185512,0.02403526,88513.0,88501.0,0.01]
[1767193185722,0.02403526,88512.0,88501.0,0.01]
[1767193185922,7e-07,88516.0,88501.0,0.01]
[1767193189113,0.0002,88520.0,88501.0,0.01]
[1767193189416,0.02981979,88522.0,88501.0,0.01]
[1767193189417,0.02403854,88521.0,88501.0,0.01]
[1767193189605,0.02403854,88520.0,88502.0,0.0665656]
[1767193189782,0.0002772,88528.0,88520.0,0.000899]
[1767193189988,0.0002772,88528.0,88523.0,0.01129649]
[1767193190374,0.0002,88541.0,88526.0,0.05648035]
[1767193190574,0.0002,88541.0,88527.0,0.01920329]
[1767193190784,6e-07,88540.0,88529.0,0.01129573]
[1767193191083,6e-07,88540.0,88529.0,0.0114]
[1767193193838,6e-07,88540.0,88530.0,0.0112956]
[1767193194000,6e-07,88540.0,88529.0,0.07917439]
[1767193194201,6e-07,88540.0,88530.0,0.03920803]
[1767193194443,6e-07,88540.0,88529.0,0.0114]
[1767193195204,6e-07,88540.0,88529.0,0.02269573]
[1767193195827,6e-07,88540.0,88533.0,0.01129522]
[1767193195986,6e-07,88540.0,88534.0,0.01129509]
[1767193196191,6e-07,88540.0,88533.0,0.06777072]
[1767193196440,6e-07,88540.0,88533.0,0.01548503]
[1767193196642,6e-07,88540.0,88529.0,0.0114]
[1767193196947,6e-07,88540.0,88529.0,0.02269573]
[1767193197310,6e-07,88540.0,88529.0,0.0114]
[1767193197700,0.0114,88555.0,88529.0,0.07917314]
[1767193197701,0.0013972,88555.0,88529.0,0.07917314]
[1767193197894,0.0013972,88555.0,88530.0,0.03000695]
[1767193197895,0.0002,88550.0,88530.0,0.03000695]
[1767193198620,0.0002,88550.0,88530.0,0.05667796]
[1767193198822,0.0002,88550.0,88530.0,0.0002]
[1767193200756,0.0002,88530.0,88501.0,0.01]
[1767193200959,0.0002,88550.0,88508.0,0.0114]
[1767193201159,0.657103,88548.0,88508.0,0.0114]
[1767193201355,0.10413068,88547.0,88509.0,0.06778922]
[1767193201625,0.02398248,88546.0,88515.0,0.01129752]
[1767193201828,0.0114,88548.0,88513.0,0.05648886]
[1767193201963,0.0114,88548.0,88515.0,0.067785]
[1767193202160,0.0114,88548.0,88515.0,0.01129752]
[1767193202395,0.0114,88548.0,88505.0,0.05649384]
[1767193202603,0.0114,88548.0,88509.0,0.00783315]
[1767193202799,0.0114,88548.0,88510.0,0.0114]
[1767193203001,0.01039907,88547.0,88510.0,0.0114]
[1767193203202,0.02395349,88547.0,88510.0,0.0114]
[1767193203405,0.02395349,88546.0,88510.0,0.0114]
[1767193203619,0.02395349,88545.0,88510.0,0.0114]
[1767193203809,0.02395349,88544.0,88510.0,0.0114]
[1767193204119,0.02395349,88543.0,88502.0,0.02136993]
[1767193204267,0.0114,88548.0,88502.0,0.07786551]
[1767193204463,0.00866598,88547.0,88508.0,0.00995317]
[1767193204667,0.03262514,88547.0,88502.0,0.01007076]
[1767193204899,4.58,88537.0,88507.0,9e-07]
[1767193205099,0.02981979,88534.0,88507.0,9e-07]
[1767193205297,0.02179837,88533.0,88507.0,9e-07]
[1767193205514,0.07959753,88532.0,88507.0,9e-07]
[1767193205687,0.06417732,88531.0,88510.0,1e-06]
[1767193205898,0.01039837,88530.0,88510.0,1e-06]
[1767193206100,0.01039837,88529.0,88510.0,1e-06]
[1767193206300,0.01039837,88528.0,88510.0,1e-06]
[1767193206540,0.07505979,88532.0,88510.0,1e-06]
[1767193206541,0.02395916,88531.0,88510.0,1e-06]
[1767193206705,0.01039505,88530.0,88510.0,1e-06]
[1767193206881,0.02395916,88531.0,88510.0,1e-06]
[1767193207296,0.01039409,88530.0,88510.0,1e-06]
[1767193207541,0.02395916,88531.0,88510.0,0.00010727]
[1767193207888,0.01039441,88530.0,88510.0,0.00010727]
[1767193208016,0.02395916,88531.0,88510.0,0.00010727]
[1767193208216,0.02395916,88531.0,88510.0,6.727e-05]
[1767193208419,0.03500106,88531.0,88510.0,6.727e-05]
[1767193208626,0.02395916,88531.0,88510.0,6.727e-05]
[1767193209006,0.08048583,88559.0,88510.0,6.727e-05]
[1767193209007,0.0114,88533.0,88510.0,6.727e-05]
[1767193211147,0.0103985,88532.0,88510.0,6.727e-05]
[1767193211495,0.0114,88533.0,88501.0,0.00841849]
[1767193211496,0.0103985,88531.0,88501.0,0.00841849]
[1767193211634,0.02981979,88529.0,88500.0,0.00019972]
[1767193211974,0.02981979,88522.0,88500.0,0.00019972]
[1767193212117,0.09099376,88521.0,88500.0,0.00019972]
[1767193212313,0.03435376,88520.0,88500.0,0.00019972]
[1767193212556,0.0103985,88519.0,88500.0,0.00019972]
[1767193212734,0.0103985,88518.0,88500.0,0.00019972]
[1767193213040,0.02395526,88520.0,88500.0,0.00019972]
[1767193213220,0.01038698,88519.0,88500.0,0.00019972]
[1767193213424,0.02395526,88520.0,88500.0,0.00019972]
[1767193213425,0.01038698,88518.0,88500.0,0.00019972]
[1767193213624,0.01038698,88517.0,88500.0,0.00019972]
[1767193213825,0.01038698,88516.0,88500.0,0.00019972]
[1767193214044,0.05377505,88520.0,88500.0,0.00019972]
[1767193214268,0.01038392,88519.0,88500.0,0.00019972]
[1767193214615,0.05377505,88520.0,88500.0,0.00019972]
[1767193214616,0.01038392,88518.0,88500.0,0.00019972]
[1767193214783,0.01038392,88517.0,88500.0,0.00019972]
[1767193215013,0.05664,88521.0,88500.0,0.00019972]
[1767193215014,0.02395526,88519.0,88500.0,0.00019972]
[1767193215214,0.0343378,88518.0,88500.0,0.00019972]
[1767193215428,0.02395526,88517.0,88500.0,0.00019972]
[1767193215592,0.05664,88516.0,88500.0,0.00019972]
[1767193218132,0.062304,88516.0,88500.0,0.00019972]
[1767193218592,0.062304,88516.0,88500.0,0.01019972]
[1767193218724,0.05664,88516.0,88500.0,0.01019972]
[1767193220270,0.04446183,88516.0,88500.0,0.01019972]
[1767193221082,0.0114,88518.0,88500.0,0.01019972]
[1767193221280,0.01085,88518.0,88500.0,0.01019972]
[1767193222651,0.01085,88518.0,88500.0,0.00965072]
[1767193223668,0.04866203,88517.0,88500.0,0.00965072]
[1767193225860,0.06006203,88517.0,88500.0,0.00965072]
[1767193228065,0.05951303,88517.0,88500.0,0.00965072]
[1767193228996,0.05951303,88517.0,88501.0,0.0077451]
[1767193229108,0.05951303,88517.0,88500.0,0.06614767]
[1767193229314,0.00010623,88531.0,88520.0,0.01129688]
[1767193229538,0.00010623,88531.0,88519.0,0.011297]
[1767193229752,0.02398415,88544.0,88519.0,0.011297]
[1767193229957,0.04866203,88544.0,88519.0,0.06788826]
[1767193230151,0.04866203,88544.0,88520.0,0.03843171]
[1767193230353,0.04866203,88542.0,88519.0,0.00010623]
[1767193230589,0.0114,88547.0,88519.0,0.00010623]
[1767193230590,0.04866203,88540.0,88519.0,0.00010623]
[1767193230783,0.04866203,88538.0,88519.0,0.00010623]
[1767193230984,0.04866203,88536.0,88519.0,0.00010623]
[1767193231144,0.04866203,88534.0,88519.0,0.00010623]
[1767193231789,0.05466823,88534.0,88519.0,0.00010623]
[1767193231991,0.04866203,88532.0,88519.0,2.3e-07]
[1767193232197,0.04866203,88530.0,88519.0,2.3e-07]
[1767193232394,0.03989078,88544.0,88519.0,2.3e-07]
[1767193232395,0.04866203,88528.0,88519.0,2.3e-07]
[1767193232609,0.03539175,88529.0,88519.0,2.3e-07]
[1767193232610,0.04866203,88526.0,88519.0,2.3e-07]
[1767193232831,0.02399175,88525.0,88519.0,2.3e-07]
[1767193233001,0.04866203,88524.0,88501.0,0.0114]
[1767193233145,0.04866203,88522.0,88501.0,0.0114]
[1767193233762,0.04866203,88522.0,88502.0,0.00775508]
[1767193233966,0.04866203,88522.0,88501.0,0.0114]
[1767193234386,0.04855603,88522.0,88501.0,0.0114]
[1767193234765,0.04855603,88522.0,88502.0,0.06779494]
[1767193235129,0.04855603,88522.0,88502.0,0.01129917]
[1767193235329,0.04855603,88522.0,88501.0,0.0226993]
[1767193235466,0.04855603,88522.0,88503.0,0.06779429]
[1767193235653,0.00010619,88524.0,88508.0,0.01129841]
[1767193235857,0.00010619,88524.0,88504.0,0.01129892]
[1767193236513,0.04866203,88523.0,88498.0,0.05649808]
[1767193236715,0.04866203,88523.0,88495.0,0.22600102]
[1767193236716,0.04866203,88523.0,88505.0,0.0114]
[1767193237011,0.04866203,88523.0,88500.0,0.02105072]
[1767193238018,0.04866203,88523.0,88501.0,0.0100151]
[1767193239515,0.04866203,88523.0,88503.0,0.01129905]
[1767193239718,0.04866203,88523.0,88501.0,0.0100151]
[1767193239917,0.04866203,88523.0,88500.0,0.02105072]
[1767193240763,0.04866203,88523.0,88501.0,0.0114]
[1767193241617,0.04866203,88523.0,88502.0,0.0114]
[1767193241776,0.02401043,88522.0,88502.0,0.0114]
[1767193241972,0.06006203,88521.0,88502.0,0.0114]
[1767193242670,0.04866203,88521.0,88502.0,0.0114]
[1767193243128,0.04866203,88521.0,88502.0,0.0202851]
[1767193243897,0.04866203,88521.0,88502.0,0.03158427]
[1767193244093,0.04866203,88521.0,88502.0,0.0202851]
[1767193244915,0.04866203,88521.0,88502.0,0.0114]
[1767193247271,0.04866203,88519.0,88502.0,0.0114]
[1767193248822,0.04866203,88517.0,88500.0,0.00965072]
[1767193249024,0.04866203,88499.0,88479.0,0.04524]
[1767193249218,0.04866203,88499.0,88482.0,0.0114]
[1767193251524,0.04866203,88499.0,88483.0,0.05650765]
[1767193251701,0.04866203,88499.0,88482.0,0.0114]
[1767193252102,0.04866203,88499.0,88484.0,0.01130147]
[1767193252308,0.04558106,88506.0,88487.0,0.0103237]
[1767193253320,0.04558106,88506.0,88487.0,0.02162479]
[1767193253586,0.04558106,88520.0,88490.0,0.06780403]
[1767193253751,0.04558106,88513.0,88488.0,0.06780537]
[1767193253952,0.04558106,88513.0,88487.0,0.0103237]
[1767193253953,0.04558106,88511.0,88487.0,0.0103237]
[1767193255436,0.04558106,88511.0,88488.0,0.01130096]
[1767193255713,0.04558106,88517.0,88496.0,0.01129994]
[1767193255930,0.04558106,88517.0,88497.0,0.02269981]
[1767193256172,0.04558106,88517.0,88502.0,0.01129917]
[1767193256391,0.04558106,88517.0,88497.0,0.0114]
[1767193256785,0.04558106,88517.0,88488.0,0.01130096]
[1767193256989,0.04558106,88517.0,88489.0,0.05664]
[1767193257165,0.0114,88522.0,88490.0,0.0383406]
[1767193257166,0.04558106,88515.0,88490.0,0.0383406]
[1767193257347,0.04558106,88515.0,88487.0,0.02162479]
[1767193257348,0.04558106,88514.0,88491.0,0.0114]
[1767193258232,0.06036574,88534.0,88491.0,0.0114]
[1767193258233,0.0299092,88532.0,88513.0,0.01129777]
[1767193258479,0.04558106,88531.0,88514.0,0.0114]
[1767193258733,0.04558106,88540.0,88521.0,0.01129675]
[1767193258943,0.04558106,88540.0,88522.0,0.09263389]
[1767193259149,0.04558106,88540.0,88523.0,0.0114]
[1767193259772,0.04558106,88540.0,88523.0,0.02269649]
[1767193260024,0.04558106,88540.0,88523.0,0.0114]
[1767193260531,0.0751492,88554.0,88523.0,0.0114]
[1767193260532,0.04558106,88546.0,88530.0,0.0112956]
[1767193260748,0.0001883,88540.0,88530.0,0.0112956]
[1767193260957,0.0001883,88540.0,88531.0,0.06777223]
[1767193261115,0.0001883,88540.0,88525.0,0.22592331]
[1767193261116,0.04576936,88540.0,88521.0,0.01129675]
[1767193261465,0.04576936,88540.0,88520.0,0.01129688]
[1767193261582,0.04576936,88540.0,88525.0,0.0114]
[1767193261781,0.04576936,88540.0,88526.0,0.0089637]
[1767193262034,0.04576936,88540.0,88529.0,0.05647851]
[1767193262186,0.0001883,88540.0,88526.0,0.0089637]
[1767193262576,0.04576936,88540.0,88526.0,0.0089637]
[1767193263821,0.0001883,88540.0,88528.0,0.05647917]
[1767193264047,0.0001883,88540.0,88529.0,0.02010963]
[1767193264251,0.0001883,88540.0,88530.0,0.05647803]